bitfinex/quotes_ETHUSD_20250815
["timestamp","ask_amount","ask_price","bid_price","bid_amount"]
[1755275592856,3.735,4419.5,4419.0,2.37573579]
[1755275593019,0.1128,4420.0,4419.4,0.1128]
[1755275593225,2.26250742,4419.9,4419.4,0.1128]
[1755275593435,2.37524857,4420.0,4419.4,0.1128]
[1755275593760,0.1128,4420.0,4419.4,0.1128]
[1755275594457,0.1128,4420.0,4419.4,2.37553745]
[1755275594773,4.65083683,4419.9,4418.4,2.26326271]
[1755275594925,0.1128,4420.0,4417.7,2.72371523]
[1755275594926,2.2626482,4419.6,4417.7,2.72371523]
[1755275595122,3.0,4420.0,4417.1,2.28390391]
[1755275595123,2.26338036,4418.2,4417.1,2.28390391]
[1755275595427,0.1128,4417.7,4417.2,2.26387756]
[1755275595746,3.735,4418.1,4417.2,2.26387756]
[1755275595938,0.1128,4417.9,4417.2,2.26387756]
[1755275596136,0.1128,4417.9,4417.1,2.39671597]
[1755275596347,0.1128,4417.9,4417.1,0.1328]
[1755275596554,0.1128,4417.9,4417.1,0.02]
[1755275596555,2.3883,4417.9,4417.1,0.02]
[1755275596777,2.26387756,4417.2,4417.1,0.02]
[1755275597069,5.99887756,4417.2,4417.1,0.02]
[1755275597234,8.49997756,4417.2,4417.1,0.02]
[1755275597799,8.67087201,4417.2,4417.1,0.02]
[1755275597974,9.09847201,4417.2,4417.1,0.02]
[1755275598568,6.28257201,4417.2,4417.1,0.02]
[1755275598927,4.01869445,4417.2,4417.1,0.02]
[1755275599124,0.1128,4417.5,4417.2,2.26387568]
[1755275599330,0.4276,4418.7,4417.1,0.02]
[1755275599331,2.3883,4419.1,4417.1,0.4801]
[1755275599570,0.1128,4418.5,4417.4,0.1128]
[1755275599872,0.1128,4419.0,4418.4,2.2632197]
[1755275600035,0.1128,4419.0,4418.3,0.1128]
[1755275600036,0.1128,4419.0,4418.3,0.5729]
[1755275600465,0.1128,4419.0,4418.3,2.37610372]
[1755275600669,0.1128,4418.6,4418.0,0.1128]
[1755275600837,0.1128,4418.8,4418.0,0.1128]
[1755275601038,0.1128,4418.8,4418.5,2.26319207]
[1755275601240,0.1128,4418.8,4418.2,2.2633596]
[1755275601241,3.72786318,4419.2,4418.4,2.26326177]
[1755275601436,3.72786318,4419.2,4418.5,2.26318878]
[1755275601437,0.1128,4418.9,4418.5,2.26318878]
[1755275601636,2.5011,4418.9,4418.2,0.1128]
[1755275601965,2.26363021,4417.7,4417.4,0.1128]
[1755275602165,0.1128,4417.5,4417.2,2.26387756]
[1755275602536,0.1128,4417.5,4417.1,2.28392039]
[1755275602756,0.1128,4417.5,4417.4,2.26377507]
[1755275602923,0.1128,4417.5,4417.1,2.3829]
[1755275602924,0.1128,4417.5,4417.3,2.26377902]
[1755275603129,2.26346573,4418.1,4417.2,2.26387476]
[1755275603325,0.1128,4417.9,4417.3,0.1128]
[1755275603635,3.735,4418.3,4417.1,0.02]
[1755275603852,0.1128,4417.5,4417.1,0.02]
[1755275604035,3.735,4418.3,4417.1,0.4801]
[1755275604237,0.1128,4417.8,4417.1,0.02]
[1755275604451,2.26371872,4417.6,4417.1,0.02]
[1755275604656,0.1128,4417.5,4417.1,0.02]
[1755275605363,0.1128,4417.5,4417.1,2.28392206]
[1755275605897,0.1128,4417.5,4417.1,0.02]
[1755275606072,2.26382631,4417.3,4417.1,0.02]
[1755275606368,2.26387756,4417.2,4417.1,0.02]
[1755275606866,4.65217756,4417.2,4417.1,0.02]
[1755275608741,2.3883,4417.9,4417.1,0.02]
[1755275608952,4.65217756,4417.2,4417.1,0.02]
[1755275609165,5.99787756,4417.2,4417.1,0.02]
[1755275609683,8.38617756,4417.2,4417.1,0.02]
[1755275609969,5.99787756,4417.2,4417.1,0.02]
[1755275610184,3.734,4417.2,4417.1,0.02]
[1755275610681,5.99787756,4417.2,4417.1,0.02]
[1755275611038,3.734,4417.2,4417.1,0.02]
[1755275611762,5.99787756,4417.2,4417.1,0.02]
[1755275612783,3.734,4417.2,4417.1,0.02]
[1755275613475,3.734,4417.2,4417.1,0.021]
[1755275614277,5.99787756,4417.2,4417.1,0.021]
[1755275614580,8.38617756,4417.2,4417.1,0.021]
[1755275614779,8.81377756,4417.2,4417.1,0.021]
[1755275615638,9.36377756,4417.2,4417.1,0.021]
[1755275616058,9.47657756,4417.2,4417.1,0.021]
[1755275616737,14.85957756,4417.2,4417.1,0.021]
[1755275616970,5.81403133,4416.9,4416.8,0.001]
[1755275617175,12.04463133,4416.9,4416.8,1e-08]
[1755275617478,14.84823133,4416.9,4416.8,1e-08]
[1755275617683,16.37503184,4416.9,4416.8,1e-08]
[1755275617865,15.01703184,4416.9,4416.8,1e-08]
[1755275618239,0.55,4416.4,4416.0,0.001]
[1755275618443,8.31104147,4416.1,4416.0,0.001]
[1755275619084,11.11464147,4416.1,4416.0,0.001]
[1755275619838,2.26459531,4415.8,4414.3,0.001]
[1755275620044,12.04419531,4415.8,4414.3,0.001]
[1755275620244,14.84779531,4415.8,4414.3,0.001]
[1755275620441,5.92819531,4415.8,4414.3,0.001]
[1755275620788,3.8466,4415.8,4415.0,0.4446]
[1755275620942,3.733,4415.8,4415.7,0.4456]
[1755275621148,0.16880051,4416.9,4415.7,2.8175]
[1755275621459,3.734,4416.8,4415.8,0.4446]
[1755275621704,0.1136,4415.8,4415.7,0.001]
[1755275622006,3.734,4415.8,4415.7,4.6375466]
[1755275622208,2.26356164,4417.9,4415.7,2.3729]
[1755275622387,0.1136,4416.9,4416.3,0.1136]
[1755275622563,3.733,4416.8,4416.4,2.70884469]
[1755275622756,3.733,4416.8,4416.6,2.26418511]
[1755275623072,3.733,4416.8,4416.3,0.1136]
[1755275623271,3.733,4416.8,4416.4,0.4446]
[1755275623459,5.99708821,4416.8,4416.1,2.37803263]
[1755275623659,0.1136,4416.6,4416.1,0.1136]
[1755275624095,2.37779543,4416.6,4416.1,0.4446]
[1755275624302,2.2642472,4416.5,4416.1,0.4446]
[1755275624511,0.1136,4416.2,4415.7,0.001]
[1755275624883,2.26440363,4416.2,4415.7,0.001]
[1755275625078,0.1136,4415.8,4415.7,0.001]
[1755275625278,6.11119531,4415.8,4415.7,0.001]
[1755275625592,3.8466,4415.8,4415.7,0.001]
[1755275625795,3.8466,4415.8,4415.7,0.4456]
[1755275626330,3.8466,4415.8,4415.7,0.001]
[1755275626619,6.11119531,4415.8,4415.7,0.001]
[1755275626912,0.1136,4415.8,4415.7,0.4456]
[1755275627100,3.733,4415.8,4415.7,5.0821466]
[1755275627269,3.733,4415.8,4415.7,2.8175]
[1755275627468,0.1136,4416.1,4416.0,2.26449275]
[1755275627696,3.733,4416.3,4416.2,2.26437636]
[1755275627907,3.733,4416.3,4416.2,5.08087636]
[1755275628373,0.1128,4417.0,4416.6,2.26418086]
[1755275628568,0.1128,4417.0,4416.2,2.9301]
[1755275628569,0.1128,4417.0,4416.9,2.26403133]
[1755275628815,3.733,4417.2,4417.0,2.26394119]
[1755275629104,3.732,4417.2,4416.9,0.1136]
[1755275629326,3.732,4417.2,4417.0,2.70858007]
[1755275629523,3.732,4417.2,4416.1,2.3719]
[1755275629821,0.1128,4417.0,4416.0,2.26446813]
[1755275630031,0.1136,4416.5,4415.9,0.1136]
[1755275630230,3.732,4416.8,4416.6,0.1136]
[1755275630390,3.732,4416.7,4416.4,2.26428332]
[1755275630724,3.732,4416.7,4416.6,2.26418511]
[1755275631023,3.732,4417.3,4416.9,2.26400951]
[1755275631224,0.1128,4417.5,4417.4,2.26377507]
[1755275631434,0.02,4418.4,4418.2,2.26332224]
[1755275631583,0.1128,4418.3,4417.5,2.70827588]
[1755275631787,0.1128,4418.3,4418.2,2.26336517]
[1755275632026,0.02,4418.4,4418.3,2.26331394]
[1755275632319,0.02,4418.4,4418.3,2.70791394]
[1755275632692,0.02,4418.4,4418.3,8.03566494]
[1755275632885,0.02,4418.4,4418.3,5.19261394]
[1755275633086,0.02,4418.4,4418.3,8.19261394]
[1755275633332,0.02,4418.4,4418.3,0.5574]
[1755275633528,0.02,4418.4,4417.5,5.3719]
[1755275633529,0.02,4418.4,4418.0,2.26343567]
[1755275633728,0.02,4418.4,4418.1,2.26336609]
[1755275633890,0.02,4418.4,4418.1,0.4446]
[1755275634225,0.02,4418.4,4418.3,2.26331394]
[1755275634430,0.02,4418.4,4418.3,2.37611394]
[1755275634612,0.02,4418.4,4418.3,2.82071394]
[1755275634816,0.02,4418.4,4418.3,5.19261394]
[1755275635006,0.02,4418.4,4418.3,2.82071394]
[1755275635989,0.02,4418.4,4417.9,3.0]
[1755275636218,0.02,4418.4,4416.1,2.26539769]
[1755275636219,0.02,4418.4,4418.1,2.9293]
[1755275636390,0.02,4418.4,4418.3,0.1128]
[1755275636585,0.02,4418.4,4418.3,2.37611394]
[1755275636786,0.02,4418.4,4418.3,5.19261394]
[1755275637236,0.02,4418.4,4418.3,8.07981394]
[1755275637389,0.02,4418.4,4418.3,8.19261394]
[1755275637588,1e-08,4418.4,4418.3,15.66501294]
[1755275638026,0.002,4419.2,4419.1,2.26290421]
[1755275638210,0.02,4419.4,4419.2,3.0]
[1755275638419,0.02,4419.4,4419.3,5.2628018]
[1755275638615,0.02,4419.4,4419.3,8.0793018]
[1755275638928,0.02,4419.4,4419.3,14.1036328]
[1755275639126,0.02,4419.4,4419.3,8.1921018]
[1755275639330,1e-08,4419.4,4419.3,13.6332138]
[1755275639631,1e-08,4419.4,4419.3,20.1365028]
[1755275639812,1e-08,4419.4,4419.3,14.5748018]
[1755275640130,1e-08,4419.4,4419.3,10.8458018]
[1755275640332,1e-08,4419.4,4419.3,10.6018018]
[1755275640629,1e-08,4419.4,4419.3,11.9211018]
[1755275640829,1e-08,4419.4,4419.3,17.9845628]
[1755275641014,1e-08,4419.4,4419.3,14.0773398]
[1755275641201,1e-08,4419.4,4419.3,14.6273398]
[1755275641830,0.002,4420.6,4420.5,2.26218753]
[1755275642002,0.002,4420.6,4420.5,5.37498753]
[1755275642204,0.002,4420.6,4420.5,12.31918453]
[1755275642406,0.002,4420.6,4420.5,16.43696253]
[1755275642722,0.002,4420.6,4420.5,8.28208953]
[1755275642892,0.002,4420.6,4420.5,2.46558953]
[1755275643091,0.002,4420.6,4420.5,2.37498753]
[1755275643334,0.002,4420.6,4420.5,0.1128]
[1755275643695,0.002,4420.6,4420.5,2.37498753]
[1755275644707,0.002,4420.6,4420.5,2.26218753]
[1755275644908,1e-08,4420.7,4420.6,2.26213636]
[1755275645107,1e-08,4420.7,4420.6,8.19143636]
[1755275645706,1e-08,4420.7,4420.6,5.81953636]
[1755275645909,1e-08,4420.7,4420.6,17.31601036]
[1755275646112,1e-08,4420.7,4420.6,16.23789136]
[1755275646405,1e-08,4420.7,4420.6,11.44848236]
[1755275646732,1e-08,4420.7,4420.6,9.54653636]
[1755275646934,1e-08,4420.7,4420.6,12.55363636]
[1755275647139,0.02,4421.4,4420.9,0.55]
[1755275647295,0.02,4421.4,4421.3,2.26177821]
[1755275647495,0.02,4421.4,4421.3,9.10157821]
[1755275647725,2.5643,4422.9,4421.3,4.2941]
[1755275647893,3.727,4423.3,4421.3,4.2941]
[1755275647894,3.727,4423.3,4422.3,2.37406676]
[1755275648346,2.4515,4423.0,4422.3,2.37406676]
[1755275649615,2.4515,4423.0,4422.3,0.1128]
[1755275649813,0.1128,4422.8,4422.1,0.1128]
[1755275650121,1e-08,4422.4,4422.3,5.26126676]
[1755275650320,1e-08,4422.4,4422.3,28.19193376]
[1755275650523,1e-08,4422.4,4422.3,19.53536076]
[1755275650842,1e-08,4422.4,4422.3,18.77266676]
[1755275651144,1e-08,4422.4,4422.3,15.70386176]
[1755275651308,1e-08,4422.4,4422.3,9.44056676]
[1755275651507,1e-08,4422.4,4422.3,8.98626676]
[1755275651724,1e-08,4422.4,4422.3,5.98626676]
[1755275651910,1e-08,4422.4,4421.1,0.4543]
[1755275652103,1e-08,4422.4,4422.1,0.4543]
[1755275652299,1e-08,4422.4,4422.2,2.26131789]
[1755275652495,1e-08,4422.4,4422.3,5.78728576]
[1755275652698,1e-08,4422.4,4422.3,2.26126676]
[1755275653417,1e-08,4422.4,4421.8,0.4543]
[1755275653418,2.45150001,4422.4,4421.8,2.26152245]
[1755275653622,2.45150001,4422.4,4421.3,3.725]
[1755275653830,1e-08,4422.4,4421.4,3.632875]
[1755275654016,1e-08,4422.4,4422.1,2.26136083]
[1755275654252,1e-08,4422.4,4421.9,2.26142069]
[1755275654454,1e-08,4422.4,4421.6,3.724]
[1755275654667,1e-08,4422.4,4422.0,2.26137457]
[1755275654867,1e-08,4422.4,4421.4,0.4543]
[1755275654868,1e-08,4422.4,4421.8,2.26150682]
[1755275655069,2.4515,4422.3,4421.4,2.26168037]
[1755275655270,2.4515,4422.3,4421.5,3.724]
[1755275655584,0.02,4424.4,4422.4,3.55]
[1755275655741,0.02,4424.4,4424.1,2.26032497]
[1755275656385,0.02,4424.4,4423.2,2.26080665]
[1755275656683,0.02,4424.4,4424.3,2.26024455]
[1755275656883,2.4215,4424.7,4423.1,0.4543]
[1755275657085,2.4215,4424.7,4424.3,2.26024076]
[1755275657254,0.099,4425.2,4423.4,2.26069141]
[1755275657455,0.02,4425.4,4423.5,4.285317]
[1755275657683,0.02,4425.4,4425.0,2.2598411]
[1755275657996,0.02,4425.4,4424.9,2.2598929]
[1755275658199,0.02,4425.4,4425.0,2.25988211]
[1755275658365,0.02,4425.4,4423.6,6.6374]
[1755275658561,3.726,4425.3,4423.8,2.26050002]
[1755275658800,5.98573554,4425.3,4423.6,0.4543]
[1755275659103,0.02,4425.4,4423.7,8.480065]
[1755275659306,2.4715,4425.4,4422.6,3.723]
[1755275659602,2.4715,4425.4,4422.4,2.26117249]
[1755275659603,0.099,4425.3,4423.8,2.26045104]
[1755275659801,2.26004417,4424.7,4423.8,2.26049563]
[1755275659988,2.4715,4425.4,4423.6,2.26060222]
[1755275660187,2.4715,4425.4,4424.5,0.1128]
[1755275660188,0.1128,4425.3,4424.5,0.1128]
[1755275660705,0.1128,4425.3,4424.6,2.2600913]
[1755275660904,0.02,4425.4,4424.2,2.26028815]
[1755275661064,0.02,4425.4,4425.1,0.1128]
[1755275661265,0.02,4425.4,4424.6,2.26004666]
[1755275661466,2.4515,4425.3,4424.6,2.26004666]
[1755275661668,2.25998855,4424.9,4422.9,0.4543]
[1755275661901,3.726,4424.8,4423.0,5.3871]
[1755275662080,2.4515,4425.3,4424.3,2.26019708]
[1755275662403,0.48158231,4425.2,4424.1,0.4543]
[1755275662567,0.48158231,4425.3,4424.5,2.2601026]
[1755275662764,2.93308231,4425.2,4424.5,0.1128]
[1755275663069,0.1128,4425.0,4423.5,3.727]
[1755275663266,0.1128,4425.0,4424.1,0.1128]
[1755275663808,0.1128,4425.0,4423.3,2.71504113]
[1755275663809,0.1128,4424.5,4423.3,2.71504113]
[1755275663990,0.1128,4424.5,4423.9,2.26044892]
[1755275664206,0.1128,4424.5,4423.8,0.1128]
[1755275664876,4.32912487,4425.1,4423.5,0.1128]
[1755275664877,2.26048268,4423.9,4423.5,0.1128]
[1755275665079,2.26044864,4424.0,4423.5,0.1128]
[1755275665311,2.93389236,4423.9,4423.5,0.1128]
[1755275665516,0.48239236,4423.8,4423.5,0.1128]
[1755275665683,0.1128,4424.1,4423.5,0.1128]
[1755275665883,2.93396896,4424.0,4423.5,0.1128]
[1755275666084,2.26090516,4423.1,4422.9,0.1128]
[1755275666283,0.1128,4423.2,4422.6,0.1128]
[1755275666613,0.1128,4423.2,4422.5,2.2611483]
[1755275666614,0.4831288,4423.1,4422.3,0.1128]
[1755275666771,2.5505,4423.2,4422.1,0.02]
[1755275666772,0.1128,4422.6,4422.1,0.02]
[1755275666970,0.48319721,4422.5,4421.6,0.1128]
[1755275667176,0.48319721,4422.5,4420.7,5.41305833]
[1755275667177,0.48319721,4422.4,4421.4,3.0]
[1755275667473,0.1128,4423.2,4422.4,0.1128]
[1755275667474,2.86299077,4423.1,4422.4,0.1128]
[1755275667785,1.08589584,4423.0,4422.4,2.37401506]
[1755275668000,0.48377097,4422.9,4422.4,0.1128]
[1755275668312,4.03580967,4423.4,4422.6,2.26106649]
[1755275668479,0.1128,4423.2,4422.7,0.20889057]
[1755275668680,0.1128,4423.2,4422.8,0.20889057]
[1755275668879,0.1128,4423.2,4422.6,0.1128]
[1755275670690,3.722,4423.3,4422.6,0.1128]
[1755275671013,0.1328,4423.4,4422.7,0.02261062]
[1755275671215,0.02,4423.4,4423.3,2.26075554]
[1755275671604,0.02,4423.4,4423.3,2.71505554]
[1755275671913,0.02,4423.4,4423.3,2.26075554]
[1755275672108,0.02,4423.4,4423.3,2.71505554]
[1755275673105,0.02,4423.4,4422.5,2.26115028]
[1755275673106,2.4715,4423.4,4422.1,2.26136903]
[1755275673305,2.4715,4423.4,4422.9,2.26093774]
[1755275673506,2.4715,4423.4,4422.8,2.26099961]
[1755275674068,2.4715,4423.4,4422.5,2.26114583]
[1755275674069,0.02,4423.4,4422.1,5.26136903]
[1755275674339,0.02,4423.4,4423.1,2.26083775]
[1755275674547,0.02,4423.4,4423.3,2.26075554]
[1755275674905,0.02,4423.4,4423.3,2.71505554]
[1755275675312,0.02,4423.4,4423.3,5.17215554]
[1755275675523,0.02,4423.4,4423.3,8.17215554]
[1755275675698,0.02,4424.4,4423.5,3.0]
[1755275675901,0.02,4424.4,4423.6,2.26060222]
[1755275676102,0.02,4424.4,4424.3,2.26024455]
[1755275676508,0.02,4424.4,4424.3,5.21804455]
[1755275677121,0.02,4424.4,4424.3,2.73334455]
[1755275677615,0.00286968,4424.4,4424.3,5.21804455]
[1755275678139,0.00059103,4424.4,4424.3,5.21804455]
[1755275678947,1e-08,4424.9,4424.8,2.25998915]
[1755275679146,1e-08,4424.9,4424.8,18.11769015]
[1755275679308,1e-08,4425.4,4424.8,18.815501]
[1755275679630,1e-08,4425.4,4424.5,3.0]
[1755275679834,1e-08,4425.4,4425.2,2.25973557]
[1755275680013,1e-08,4425.4,4424.6,3.0]
[1755275680212,1e-08,4425.4,4425.3,2.2597338]
[1755275681247,1e-08,4425.4,4424.8,3.721]
[1755275681547,1e-08,4425.4,4425.2,2.25973426]
[1755275681743,1e-08,4425.4,4425.2,2.25978251]
[1755275682039,1e-08,4425.4,4425.3,2.2597338]
[1755275682208,1e-08,4425.4,4425.3,6.4538338]
[1755275682842,0.00200001,4425.4,4425.3,6.4538338]
[1755275683011,0.00200001,4425.4,4425.3,11.9385338]
[1755275683211,0.00200001,4425.4,4425.3,9.5666338]
[1755275683446,0.00200001,4425.4,4425.3,2.3725338]
[1755275683954,0.00200001,4425.4,4425.3,0.1128]
[1755275684129,2.25440001,4425.4,4425.3,0.1128]
[1755275684648,2.47350001,4425.4,4424.4,0.1128]
[1755275684813,0.1128,4425.0,4424.4,0.1128]
[1755275685014,2.36070001,4425.4,4424.8,2.3727494]
[1755275685015,2.25440001,4425.4,4424.8,2.3727494]
[1755275685342,2.25440001,4425.4,4424.8,2.37277933]
[1755275685746,2.25440001,4425.4,4425.1,2.25979234]
[1755275685948,2.25440001,4425.4,4424.9,2.25989707]
[1755275686357,2.3587,4425.3,4424.0,3.0]
[1755275686569,2.2524,4425.3,4424.9,2.25990393]
[1755275686710,2.2524,4425.3,4424.8,0.1128]
[1755275687312,2.2524,4425.3,4424.9,2.25989666]
[1755275687537,0.00200001,4425.4,4425.3,2.2597338]
[1755275687711,0.00200001,4425.4,4425.2,0.1128]
[1755275688042,2.3652,4425.3,4424.9,2.25992798]
[1755275688238,2.3652,4425.3,4424.7,2.25999437]
[1755275688411,2.3652,4425.3,4424.6,0.1128]
[1755275688613,2.2598561,4425.1,4424.3,2.26022297]
[1755275688854,0.1128,4425.0,4424.4,0.1128]
[1755275689228,0.1128,4425.0,4424.4,2.37298787]
[1755275689430,0.1128,4425.0,4424.4,0.1128]
[1755275689957,2.2524,4424.9,4424.4,0.1128]
[1755275690114,0.1128,4424.7,4424.1,0.1128]
[1755275690316,2.25440001,4425.4,4424.5,2.26011754]
[1755275690647,2.25440001,4425.4,4423.4,2.4847]
[1755275690648,2.26014362,4424.5,4423.2,3.72]
[1755275690814,0.1128,4424.5,4423.9,2.37323356]
[1755275691014,0.00200001,4425.4,4424.0,0.4731]
[1755275691338,0.00200001,4425.4,4424.1,2.26034673]
[1755275691516,0.00200001,4425.4,4423.8,3.0]
[1755275691715,2.2524,4425.3,4423.2,0.4731]
[1755275691929,0.4349,4425.2,4423.9,2.26043286]
[1755275692128,0.4349,4425.2,4423.7,2.26050719]
[1755275692129,2.2524,4425.1,4423.7,2.26050719]
[1755275692329,2.26015367,4424.5,4423.4,2.26069916]
[1755275692534,2.26015367,4424.5,4422.7,0.4731]
[1755275692535,2.2524,4424.7,4422.2,2.26131789]
[1755275692765,2.2524,4424.4,4423.2,2.26075868]
[1755275693061,2.2524,4424.4,4422.1,0.4931]
[1755275693062,2.26029564,4424.2,4422.1,0.4931]
[1755275693279,2.26116421,4422.6,4422.1,0.02]
[1755275693416,3.72,4423.2,4422.1,0.02]
[1755275693616,4.5135702,4422.5,4422.1,0.02]
[1755275693962,2.2524,4422.5,4422.1,0.02]
[1755275694458,2.2524,4422.4,4422.1,0.02]
[1755275695972,2.2524,4423.0,4422.1,2.28134264]
[1755275696257,2.2524,4423.0,4422.1,0.02]
[1755275696258,2.26100426,4422.9,4422.1,0.02]
[1755275696560,2.2524,4423.0,4422.1,0.02]
[1755275697166,2.26101684,4422.8,4422.1,0.02]
[1755275697455,2.2524,4423.4,4422.1,0.02]
[1755275697655,2.26075554,4423.3,4422.2,2.26131789]
[1755275697855,2.26100966,4422.9,4422.1,0.02]
[1755275698063,2.26100567,4422.9,4422.1,2.28136614]
[1755275698265,2.6873,4423.2,4422.1,0.02]
[1755275698448,2.26100552,4422.9,4422.1,0.02]
[1755275698759,2.2524,4423.1,4422.1,0.02]
[1755275698760,2.26093666,4423.0,4422.1,0.02]
[1755275698981,2.2524,4423.1,4422.1,0.02]
[1755275699136,4.51326181,4423.1,4422.2,2.26131789]
[1755275699341,4.51326181,4423.1,4422.3,2.26126408]
[1755275699537,4.51326181,4423.1,4422.1,0.021]
[1755275699873,2.2609356,4423.0,4422.2,2.26127433]
[1755275700052,2.2609356,4423.0,4422.1,0.021]
[1755275700053,2.2524,4423.1,4422.1,0.021]
[1755275700367,2.26131789,4422.2,4422.1,0.021]
[1755275700533,5.98231789,4422.2,4422.1,0.021]
[1755275700728,8.66961789,4422.2,4422.1,0.021]
[1755275700958,11.78241789,4422.2,4422.1,0.021]
[1755275701465,8.78241789,4422.2,4422.1,0.021]
[1755275701855,9.33241789,4422.2,4422.1,0.021]
[1755275702275,9.33241789,4422.2,4421.8,0.001]
[1755275702276,2.81147131,4421.9,4421.8,0.001]
[1755275702430,3.0,4421.8,4421.0,1e-08]
[1755275702625,2.81213636,4420.6,4420.5,0.001]
[1755275702930,2.81213636,4420.6,4419.1,0.02]
[1755275702931,2.81234107,4420.2,4419.1,0.02]
[1755275703125,2.81244343,4420.0,4419.1,0.02]
[1755275703329,2.262853,4419.2,4419.1,0.02]
[1755275703551,5.983853,4419.2,4419.1,0.02]
[1755275703837,8.671153,4419.2,4419.1,0.02]
[1755275704171,8.783953,4419.2,4419.1,0.02]
[1755275704348,6.63467412,4419.2,4419.1,0.02]
[1755275704671,8.89752712,4419.2,4419.1,0.02]
[1755275704968,8.46262712,4419.2,4419.1,0.02]
[1755275705137,4.74162712,4419.2,4419.1,0.02]
[1755275705471,9.44852712,4419.2,4419.1,0.02]
[1755275705841,0.55,4419.1,4418.1,0.02]
[1755275706047,2.81336517,4418.2,4418.1,0.02]
[1755275706256,6.09816517,4418.2,4418.1,0.02]
[1755275706429,8.43116517,4418.2,4418.1,0.02]
[1755275707435,8.86606517,4418.2,4418.1,0.02]
[1755275707944,9.41606517,4418.2,4418.1,0.02]
[1755275708658,14.84906517,4418.2,4418.1,1e-08]
[1755275708832,17.84906517,4418.2,4418.1,1e-08]
[1755275710437,17.85006517,4418.2,4418.1,1e-08]
[1755275711352,14.12706517,4418.2,4418.1,1e-08]
[1755275711681,17.85106517,4418.2,4418.1,1e-08]
[1755275712650,10.57936517,4418.2,4418.1,1e-08]
[1755275712836,13.86616517,4418.2,4418.1,1e-08]
[1755275713059,11.53316517,4418.2,4418.1,1e-08]
[1755275713265,2.8134164,4418.1,4417.6,1e-08]
[1755275713470,2.8134164,4418.1,4416.7,0.001]
[1755275713471,5.81408259,4416.8,4416.7,1e-08]
[1755275713764,2.26439019,4416.2,4414.5,0.4389]
[1755275713940,8.98839019,4416.2,4414.5,0.4389]
[1755275714137,0.55,4415.7,4414.3,0.001]
[1755275714376,5.81469788,4415.6,4415.5,1e-08]
[1755275714575,8.58259788,4415.6,4415.5,1e-08]
[1755275714782,0.55,4415.3,4414.8,1e-08]
[1755275714992,3.55,4415.5,4414.3,0.001]
[1755275714993,2.81531351,4414.4,4414.3,0.001]
[1755275715353,3.724,4414.4,4414.3,0.001]
[1755275715688,5.98931351,4414.4,4414.3,0.001]
[1755275716190,3.724,4414.4,4414.3,2.9168]
[1755275716395,5.436,4416.2,4414.3,2.9168]
[1755275716396,5.436,4416.2,4414.4,2.26531351]
[1755275716561,3.724,4415.5,4414.7,2.26514565]
[1755275716761,5.436,4416.2,4414.8,2.9158]
[1755275716966,3.725,4416.1,4414.9,0.4389]
[1755275717370,2.26454403,4415.9,4414.3,0.001]
[1755275717550,0.55,4415.0,4414.3,0.001]
[1755275717897,2.26432379,4416.4,4414.3,0.001]
[1755275718199,0.55,4415.8,4414.4,0.4389]
[1755275718347,0.1666459,4416.4,4414.4,0.4389]
[1755275718553,2.2645321,4416.0,4414.5,2.4769]
[1755275718762,7.70107933,4416.9,4414.5,2.4769]
[1755275718763,0.16898561,4416.5,4414.5,2.4769]
[1755275718966,3.725,4416.4,4414.7,2.26515958]
[1755275719166,5.437,4416.9,4416.3,2.26433391]
[1755275719398,5.437,4416.9,4414.9,3.0]
[1755275719399,3.725,4416.8,4416.4,0.4389]
[1755275719594,3.725,4416.8,4416.5,0.4389]
[1755275719902,3.725,4416.8,4415.3,0.02264851]
[1755275719903,3.725,4416.8,4416.6,5.17998247]
[1755275720060,3.725,4416.8,4416.6,0.4389]
[1755275720394,3.725,4416.8,4416.2,2.264383]
[1755275720395,3.725,4416.8,4416.3,2.26430763]
[1755275720601,0.02,4417.4,4416.7,0.4389]
[1755275720753,3.745,4417.4,4416.7,0.4389]
[1755275720955,3.745,4417.4,4417.3,2.26382631]
[1755275721195,0.002,4420.3,4417.3,2.26382631]
[1755275721196,2.335,4420.3,4417.4,2.26377507]
[1755275721374,3.89570369,4419.5,4418.3,2.26331394]
[1755275721584,0.002,4420.3,4417.7,16.29182111]
[1755275721763,3.725,4420.0,4417.9,3.0]
[1755275721970,3.725,4420.0,4419.3,2.2628018]
[1755275722467,3.725,4420.0,4419.3,5.1786018]
[1755275722668,3.725,4420.0,4419.3,2.9158]
[1755275722868,3.725,4420.0,4419.3,0.4389]
[1755275723262,0.1328,4419.4,4419.3,0.4389]
[1755275723859,3.8578,4419.4,4418.6,2.70202969]
[1755275724087,0.1128,4419.0,4418.6,0.4389]
[1755275724298,0.1128,4419.0,4418.1,0.4389]
[1755275724604,0.1128,4418.6,4418.4,0.001]
[1755275724761,5.98821149,4418.5,4418.4,0.001]
[1755275725394,8.87121149,4418.5,4418.4,0.001]
[1755275725567,12.32191149,4418.5,4418.4,0.001]
[1755275726172,3.55,4417.9,4416.4,0.4389]
[1755275726403,0.1136,4416.6,4416.4,0.4389]
[1755275726699,2.26423638,4416.5,4416.0,0.1136]
[1755275726915,3.8376,4416.6,4415.7,2.26463826]
[1755275727073,3.8376,4416.6,4416.2,0.4389]
[1755275727395,3.8376,4416.6,4416.3,0.4389]
[1755275727599,6.10178774,4416.6,4416.3,0.4389]
[1755275727771,6.10178774,4416.6,4415.8,0.1136]
[1755275727772,3.8376,4416.6,4415.8,0.1136]
[1755275728160,3.724,4416.6,4415.4,2.4769]
[1755275728360,0.1136,4416.2,4415.5,0.5525]